bitfinex-derivatives/quotes_ETHF0:USTF0_20251003
["timestamp","ask_amount","ask_price","bid_price","bid_amount"]
[1759507521125,3.2078,4528.0,4525.5,0.4428]
[1759507521126,3.2078,4527.0,4526.0,3.2078]
[1759507521330,3.2078,4526.4,4525.4,3.2078]
[1759507521631,3.2078,4525.9,4525.4,0.00204836]
[1759507521831,0.52445374,4525.8,4525.4,0.00204836]
[1759507522025,0.52445374,4525.7,4525.4,0.00204836]
[1759507522330,0.232,4525.8,4525.4,0.00204836]
[1759507522633,0.232,4526.3,4525.7,3.2078]
[1759507522834,0.39735,4526.2,4525.5,1.198]
[1759507523036,0.232,4526.3,4525.5,1.198]
[1759507523232,0.39735,4526.2,4525.5,1.198]
[1759507523438,0.0020224,4526.4,4525.5,1.198]
[1759507523730,3.2078,4526.1,4525.4,0.00204836]
[1759507523942,0.0020224,4526.4,4525.5,1.198]
[1759507524235,3.2078,4527.3,4526.4,1.198]
[1759507524433,0.39726,4527.2,4527.1,1.198]
[1759507524737,3.2078,4529.4,4527.2,1.198]
[1759507524934,0.31119732,4528.9,4528.8,1.6408]
[1759507525131,3.2078,4529.4,4528.9,1.198]
[1759507525326,3.60487,4529.4,4528.8,1.64257412]
[1759507525526,3.2078,4530.2,4528.9,3.4408]
[1759507525734,0.233,4530.3,4528.8,0.44457412]
[1759507525735,3.60489,4529.1,4529.0,1.198]
[1759507525937,0.99232,4531.0,4529.0,1.198]
[1759507525938,3.2078,4529.7,4529.0,1.198]
[1759507526134,2.83888554,4531.2,4529.8,1.198]
[1759507526135,3.2078,4531.2,4529.8,1.198]
[1759507526432,0.39698,4530.5,4529.9,0.233]
[1759507526633,3.2078,4530.8,4530.4,1.198]
[1759507526837,0.00259845,4531.2,4530.1,1.198]
[1759507527041,0.00259845,4531.2,4531.0,0.4428]
[1759507527337,0.00259845,4531.2,4531.1,1.198]
[1759507527641,3.2078,4531.9,4531.2,1.198]
[1759507527838,0.39681,4532.3,4531.4,1.198]
[1759507528135,0.39681,4532.4,4532.0,0.4428]
[1759507528336,9.92108,4532.0,4530.5,1.198]
[1759507528641,3.2078,4533.8,4532.0,1.198]
[1759507528835,0.39669,4533.8,4532.8,3.2078]
[1759507529139,0.233,4534.4,4533.4,4.352]
[1759507529342,0.233,4534.5,4533.4,4.352]
[1759507529533,0.39671,4533.5,4533.4,1.1442]
[1759507529733,0.39668,4533.8,4533.4,1.1442]
[1759507530040,3.2078,4533.5,4532.3,3.2078]
[1759507530240,0.39681,4532.4,4531.9,1.1442]
[1759507530439,3.2078,4532.5,4531.6,1.1442]
[1759507530628,0.39686,4531.7,4531.6,1.1442]
[1759507530937,0.232,4532.6,4531.7,1.1442]
[1759507531132,9.91845194,4534.5,4532.5,1.1442]
[1759507531133,0.39669,4533.8,4532.5,1.1442]
[1759507531447,0.39677,4532.8,4532.5,1.1442]
[1759507531628,0.39682,4532.2,4531.9,3.4408]
[1759507531827,1.98301,4534.8,4531.9,3.4408]
[1759507531828,3.2078,4533.6,4532.1,1.1442]
[1759507532132,0.39668,4533.8,4533.2,3.2078]
[1759507532326,0.3967,4533.6,4533.2,3.2078]
[1759507532531,0.2695,4535.0,4533.2,3.2078]
[1759507532532,4.4293,4535.4,4533.7,1.203]
[1759507532731,3.2078,4534.8,4533.9,3.2078]
[1759507532928,0.234,4535.5,4534.4,3.2078]
[1759507533135,0.63054,4535.5,4534.9,3.2078]
[1759507533339,0.39655,4535.3,4534.9,4.4108]
[1759507533531,0.39655,4535.3,4534.0,0.234]
[1759507533532,0.39663,4534.5,4534.2,1.203]
[1759507533734,3.2078,4535.0,4533.7,4.41237991]
[1759507533735,0.234,4534.9,4533.7,4.41237991]
[1759507534039,0.39667,4534.0,4533.7,3.20937991]
[1759507534234,0.39667,4534.0,4533.8,1.203]
[1759507534431,0.39659,4534.8,4533.9,0.39667]
[1759507534633,0.00257019,4534.9,4533.8,1.203]
[1759507534634,0.39665,4534.2,4533.8,1.203]
[1759507534837,0.39665,4534.2,4533.7,3.20937991]
[1759507534838,0.23657019,4534.9,4533.7,3.20937991]
[1759507535047,0.39667,4534.0,4533.8,1.203]
[1759507535533,0.39668,4533.8,4533.7,0.00157991]
[1759507535740,1.2215,4534.8,4533.7,1.20457991]
[1759507535931,1.2215,4534.8,4533.8,1.203]
[1759507536244,0.3966,4534.8,4534.1,3.2078]
[1759507536443,0.00257019,4534.9,4534.1,3.2078]
[1759507536444,0.39665,4534.3,4534.1,4.4108]
[1759507536639,0.00257019,4534.9,4533.7,1.20457991]
[1759507536940,0.39665,4534.2,4533.7,0.00157991]
[1759507537244,0.39668,4533.8,4533.7,1.20457991]
[1759507537436,3.2078,4534.5,4533.7,1.20457991]
[1759507537630,0.00257019,4534.9,4534.1,1.203]
[1759507538034,0.39664,4534.3,4534.1,1.203]
[1759507538230,0.00257019,4534.9,4534.1,1.203]
[1759507538432,0.39662,4534.5,4534.1,1.203]
[1759507538633,0.00257019,4534.9,4534.1,1.203]
[1759507538941,0.39664,4534.3,4534.0,3.2078]
[1759507539236,0.39665,4534.2,4534.1,1.203]
[1759507539642,0.39665,4534.2,4533.7,0.00157991]
[1759507539643,0.39668,4533.8,4533.7,0.00157991]
[1759507539840,0.234,4534.7,4533.8,1.203]
[1759507540141,0.234,4534.7,4534.6,0.39661]
[1759507540341,0.234,4534.7,4533.8,1.203]
[1759507540639,3.2078,4534.4,4533.8,0.39668]
[1759507540842,3.2078,4534.4,4533.7,0.00157991]
[1759507541136,3.2078,4533.9,4533.7,0.00157991]
[1759507541445,3.2078,4533.9,4533.8,0.39667]
[1759507541643,0.234,4534.1,4534.0,0.39666]
[1759507541839,3.2078,4534.4,4533.7,0.00157991]
[1759507541840,3.2078,4534.4,4533.8,0.9917]
[1759507542040,0.00257019,4534.9,4534.4,1.203]
[1759507542337,1.9e-07,4534.9,4534.8,4.80739]
[1759507542735,3.2078,4536.3,4535.0,1.203]
[1759507542944,4.4293,4536.3,4536.1,0.39647]
[1759507543134,3.2078,4536.3,4535.4,1.203]
[1759507543335,1.2215,4536.2,4535.8,0.3965]
[1759507543538,3.2078,4536.3,4536.2,0.39647]
[1759507543733,3.21037716,4536.3,4536.2,1.59947]
[1759507543932,7.16e-06,4536.3,4536.2,1.59947]
[1759507544136,7.16e-06,4536.3,4536.2,6.59947]
[1759507544541,7.16e-06,4536.3,4536.2,0.39647]
[1759507544736,7.16e-06,4536.3,4535.7,0.39651]
[1759507544737,1.22150716,4536.3,4535.7,0.39651]
[1759507544946,7.16e-06,4536.3,4536.2,0.39647]
[1759507545346,7.16e-06,4536.3,4536.2,5.39647]
[1759507546346,1.56982002,4539.5,4536.2,5.39647]
[1759507546347,3.2078,4539.3,4538.3,0.39628]
[1759507546549,0.39623,4539.0,4538.5,3.2078]
[1759507546839,0.39622,4539.1,4538.5,3.2078]
[1759507547236,1.61776,4538.6,4538.5,0.00243007]
[1759507547643,6.61776,4538.6,4538.5,7e-08]
[1759507547840,0.39633,4537.9,4537.0,0.3964]
[1759507548141,1.2215,4538.1,4536.9,1.203]
[1759507548142,0.39637,4537.4,4536.9,1.203]
[1759507548343,3.2078,4538.4,4537.7,0.39633]
[1759507548547,0.00156263,4539.1,4539.0,0.39623]
[1759507548839,0.00156263,4539.1,4539.0,1.20510744]
[1759507549447,0.39778263,4539.1,4539.0,0.00210744]
[1759507549642,1.61928263,4539.1,4539.0,0.00210744]
[1759507549848,0.00156263,4539.1,4539.0,0.00210744]
[1759507550246,1.61928263,4539.1,4539.0,0.00210744]
[1759507550745,0.99058,4539.0,4537.7,3.2078]
[1759507550950,3.2078,4538.4,4537.7,3.2078]
[1759507551143,0.39633,4537.9,4537.7,3.2078]
[1759507551344,1.2215,4537.8,4537.7,3.2078]
[1759507551548,1.2215,4537.8,4537.1,3.60419]
[1759507551747,1.2215,4537.8,4537.2,0.39638]
[1759507552048,0.3963,4538.2,4537.1,3.21044145]
[1759507552245,3.2078,4537.9,4537.1,4.41344145]
[1759507552441,3.60413,4537.9,4537.1,4.80983145]
[1759507552747,3.2078,4537.9,4537.1,4.41344145]
[1759507552949,0.233,4538.0,4537.2,0.39638]
[1759507553149,0.233,4538.0,4537.4,0.39636]
[1759507553447,1.2215,4538.5,4537.1,4.41344145]
[1759507553448,3.2078,4539.4,4537.9,1.203]
[1759507553645,3.2078,4539.4,4538.6,1.59926]
[1759507553850,0.39621,4539.3,4538.6,1.203]
[1759507554347,0.39624,4538.9,4538.5,3.2078]
[1759507554848,3.2078,4539.4,4538.5,3.2078]
[1759507555050,3.2078,4539.4,4538.9,0.39623]
[1759507555350,0.233,4539.3,4539.0,1.203]
[1759507555546,3.2078,4539.9,4539.0,4.4108]
[1759507555850,0.233,4540.2,4539.9,0.39615]
[1759507556048,0.233,4540.1,4540.0,0.39613]
[1759507556245,3.2078,4540.4,4539.4,1.203]
[1759507556852,3.2078,4540.4,4539.0,3.2078]
[1759507556853,1.2215,4540.2,4539.0,3.2078]
[1759507557042,0.39621,4539.3,4539.0,3.2078]
[1759507557241,0.233,4539.7,4538.6,1.203]
[1759507557442,1.22409666,4540.4,4539.6,3.2078]
[1759507557443,4.82800666,4540.4,4539.6,3.2078]
[1759507557753,3.21039666,4540.4,4539.6,3.2078]
[1759507557959,0.62912,4540.3,4539.6,3.60397]
[1759507558149,0.233,4540.3,4539.6,3.2078]
[1759507558350,0.233,4540.3,4539.3,1.203]
[1759507558555,3.2078,4539.9,4539.1,3.60401]
[1759507558753,0.39616,4539.8,4539.1,3.60401]
[1759507558951,0.232,4539.7,4539.2,0.3962]
[1759507559149,0.232,4539.7,4539.1,3.2078]
[1759507559455,0.39618,4539.5,4539.1,3.2078]
[1759507559852,0.39621,4539.3,4539.1,4.4108]
[1759507560251,0.39625,4538.8,4538.6,3.2078]
[1759507560646,0.3963,4538.3,4538.1,3.2078]
[1759507561052,0.39635,4537.6,4537.5,3.2078]
[1759507561453,0.39635,4537.6,4537.1,0.00264145]
[1759507561454,0.62835,4537.6,4537.1,0.00264145]
[1759507561756,0.232,4537.6,4537.1,0.00264145]
[1759507561960,1.478,4537.6,4537.1,0.00264145]
[1759507562359,1.246,4537.5,4537.1,0.00264145]
[1759507562755,0.62835,4537.6,4537.1,0.00264145]
[1759507562959,3.2078,4537.9,4537.3,0.39637]
[1759507563261,0.232,4537.8,4537.6,3.2078]
[1759507563650,0.232,4537.8,4537.6,3.60415]
[1759507563960,0.232,4537.8,4537.6,3.2078]
[1759507564357,3.2078,4538.7,4537.8,1.2075]
[1759507564660,0.232,4538.6,4537.8,1.2075]
[1759507564849,3.2078,4538.7,4537.8,1.2075]
[1759507565053,3.2078,4538.7,4538.1,3.2078]
[1759507565262,1.246,4538.9,4538.2,1.2075]
[1759507565263,0.232,4538.6,4538.2,1.2075]
[1759507565469,1.246,4539.6,4538.4,0.39627]
[1759507565665,0.232,4539.0,4538.2,1.60379]
[1759507565858,0.232,4539.0,4538.3,0.39628]
[1759507566054,3.2078,4539.3,4538.8,0.39624]
[1759507566363,0.232,4539.2,4538.8,1.2075]
[1759507566655,0.232,4539.2,4538.6,3.2078]
[1759507566854,0.39621,4539.2,4538.6,3.2078]
[1759507567056,1.246,4539.0,4538.6,3.2078]
[1759507567461,0.232,4539.1,4538.6,3.2078]
[1759507567658,0.232,4539.1,4537.9,1.2075]
[1759507567659,1.246,4538.7,4537.9,3.2078]
[1759507567859,1.246,4538.0,4537.9,3.2078]
[1759507568048,0.232,4538.2,4537.9,3.2078]
[1759507568665,0.39631,4538.0,4537.9,3.2078]
[1759507568861,0.39636,4537.5,4537.4,3.2078]
[1759507569057,3.2078,4538.1,4537.4,3.2078]
[1759507569256,3.2078,4538.6,4537.5,1.2075]
[1759507569463,0.232,4538.5,4537.8,0.39633]
[1759507569666,0.232,4538.5,4537.9,3.2078]
[1759507569965,0.3963,4538.2,4537.9,3.2078]
[1759507570263,1.246,4538.2,4537.9,3.2078]
[1759507570458,1.246,4538.0,4537.9,3.2078]
[1759507571262,1.478,4538.0,4537.3,3.83617]
[1759507571757,1.478,4538.0,4537.8,3.2078]
[1759507571959,0.232,4538.0,4537.7,0.39633]
[1759507572154,0.232,4538.0,4537.8,3.2078]
[1759507572564,1.478,4538.0,4537.8,3.2078]
[1759507572768,0.3963,4538.2,4537.8,3.2078]
[1759507572969,0.232,4537.9,4537.8,3.2078]
[1759507574058,1.246,4539.0,4537.8,8.2078]
[1759507574260,0.231,4538.9,4538.4,3.60407]
[1759507574463,1.477,4538.9,4538.4,3.2078]
[1759507574663,1.246,4538.7,4538.4,3.2078]
[1759507574968,0.62724,4538.9,4538.4,3.2078]
[1759507575263,0.62725,4538.8,4538.2,3.2078]
[1759507575565,0.39628,4538.4,4538.2,3.2078]
[1759507575760,1.477,4538.3,4538.2,3.2078]
[1759507576169,0.39633,4537.9,4537.7,3.2078]
[1759507576566,1.477,4538.3,4537.7,3.2078]
[1759507576767,4.906,4539.0,4538.2,3.2078]
[1759507576964,0.231,4538.9,4538.2,3.2078]
[1759507577164,0.39623,4538.9,4538.2,3.60409]
[1759507577364,0.231,4538.8,4538.4,1.2075]
[1759507577662,4.85003,4539.0,4538.3,1.60378]
[1759507577967,0.231,4538.7,4538.2,3.2078]
[1759507578164,1.246,4538.3,4538.2,3.2078]
[1759507578563,0.231,4538.3,4538.2,3.2078]
[1759507579270,1.477,4538.3,4538.2,3.2078]
[1759507580165,1.477,4538.3,4537.5,3.2078]
[1759507580463,4.906,4539.5,4538.4,1.2075]
[1759507580669,0.231,4538.9,4538.5,3.60406]
[1759507580865,0.231,4538.9,4538.6,1.2075]
[1759507581670,0.231,4538.9,4538.5,3.2078]
[1759507581868,1.477,4538.9,4538.5,3.60406]
[1759507582068,0.231,4538.9,4538.7,0.39625]
[1759507582270,0.231,4538.9,4538.8,1.2075]
[1759507582568,0.231,4538.9,4538.8,1.60374]
[1759507582873,0.231,4538.9,4538.8,1.2075]
[1759507583469,0.231,4538.9,4538.5,3.60406]
[1759507583670,1.246,4538.8,4538.5,3.2078]
[1759507584170,4.4538,4540.0,4538.7,1.2075]
[1759507584473,0.231,4539.9,4539.2,3.2078]
[1759507584973,0.62714,4539.9,4539.2,3.2078]
[1759507585170,4.4538,4540.0,4539.2,3.2078]
[1759507585472,0.231,4540.0,4539.8,3.60395]
[1759507585670,1.246,4540.7,4539.8,3.2078]
[1759507585972,0.231,4540.1,4539.9,1.2075]
[1759507586169,0.231,4540.1,4539.8,3.2078]
[1759507586368,0.231,4540.1,4538.5,1.44205]
[1759507586369,1.64215,4539.9,4539.3,3.2078]
[1759507586669,0.231,4539.8,4539.4,1.1346]
[1759507586868,0.231,4539.8,4539.3,3.60399]
[1759507587068,1.19499666,4540.4,4539.4,1.1346]
[1759507587473,0.231,4540.3,4539.7,0.39616]
[1759507587669,0.231,4540.3,4539.8,3.2078]
[1759507587988,0.23359666,4540.4,4539.8,4.3424]
[1759507588169,0.23359666,4540.4,4540.0,1.1346]
[1759507588370,0.23359666,4540.4,4539.8,4.3424]
[1759507588569,0.00259666,4540.4,4540.3,4.3424]
[1759507588767,0.00259666,4540.4,4540.3,4.34422562]
[1759507588974,0.00259666,4540.4,4540.3,0.00182562]
[1759507589574,1.19499666,4540.4,4540.3,0.00182562]
[1759507589770,0.00259666,4540.4,4540.3,0.00182562]
[1759507590080,1.19499666,4540.4,4540.3,0.00182562]
[1759507590571,0.39616,4539.8,4539.2,3.2078]
[1759507590779,0.39616,4539.8,4538.5,0.53727852]
[1759507590780,0.39617,4539.6,4538.7,3.2078]
[1759507590971,0.62717,4539.6,4538.7,3.60405]
[1759507591373,1.1924,4539.9,4539.3,3.2078]
[1759507591569,3.21039666,4540.4,4539.3,4.3424]
[1759507591570,0.231,4539.8,4539.3,4.3424]
[1759507591872,0.231,4539.8,4539.3,3.60602682]
[1759507592072,0.231,4540.0,4539.4,1.58599]
[1759507592378,0.231,4540.0,4539.4,1.1898]
[1759507593278,0.231,4540.3,4539.9,1.1898]
[1759507593473,0.00259666,4540.4,4540.1,1.1898]
[1759507593873,0.00259666,4540.4,4540.3,4.3976]
[1759507596179,3.2078,4541.5,4540.4,1.1898]
[1759507596375,1.3616,4541.2,4540.4,1.1898]
[1759507596880,1.3616,4541.2,4540.9,1.1898]
[1759507596881,0.231,4541.2,4540.9,1.1898]
[1759507597077,0.39602,4541.3,4540.9,1.1898]
[1759507597276,0.39602,4541.3,4540.8,3.2078]
[1759507597277,0.9905,4539.3,4538.4,1.53871307]
[1759507597478,4.3384,4538.6,4537.2,0.4545]
[1759507597679,3.2078,4538.6,4537.2,0.4545]
[1759507597878,0.231,4538.5,4537.8,4.05862]
[1759507598081,3.2078,4539.1,4537.8,3.6623]
[1759507598279,3.2078,4539.1,4538.4,0.4545]
[1759507598280,0.84199436,4539.0,4538.4,0.4545]
[1759507598475,0.231,4538.9,4538.4,0.4545]
[1759507598670,0.39627,4538.5,4537.8,3.89489548]
[1759507598875,0.39627,4538.5,4537.8,4.29121548]
[1759507599081,3.2078,4538.6,4537.8,4.29121548]
[1759507599277,3.4388,4538.6,4538.4,1.58607]
[1759507599488,0.231,4538.9,4538.4,0.85077]
[1759507599675,3.2078,4539.2,4538.5,1.1898]
[1759507599872,0.39623,4539.0,4538.5,1.1898]
[1759507600077,3.2078,4539.2,4538.7,0.39624]
[1759507600379,4.3384,4540.2,4539.1,1.1898]
[1759507600585,4.3384,4540.2,4539.2,1.1898]
[1759507600586,0.44994578,4540.1,4539.2,1.1898]
[1759507600883,3.2078,4540.7,4539.9,1.1898]
[1759507601085,3.2078,4540.7,4540.2,1.1898]
[1759507601282,3.2078,4540.7,4540.6,1.1898]
[1759507601980,3.2078,4540.7,4540.6,1.58588]
[1759507602179,0.231,4541.0,4540.6,0.39608]
[1759507602375,3.44053015,4541.3,4540.3,1.1898]
[1759507602575,3.44053015,4541.3,4540.9,1.1898]
[1759507602784,3.60556015,4541.3,4540.5,1.58589]
[1759507602985,1.1306,4541.1,4540.1,3.2078]
[1759507603178,3.2078,4540.6,4539.9,1.1898]
[1759507603373,3.2078,4540.6,4540.4,1.1898]
[1759507603581,0.3961,4540.5,4539.9,0.39614]
[1759507603781,0.6271,4540.4,4539.8,1.1898]
[1759507604082,3.2078,4540.6,4539.9,0.39614]
[1759507604278,0.231,4540.4,4540.0,1.1898]
[1759507604473,3.2078,4540.6,4539.7,1.1898]
[1759507604782,0.231,4540.5,4539.7,1.1898]
[1759507605084,3.2078,4540.6,4540.0,0.39613]
[1759507605285,0.39603,4541.2,4540.6,1.1898]
[1759507605472,3.20953015,4541.3,4540.6,1.1898]
[1759507605676,0.231,4541.2,4540.6,0.39608]
[1759507605877,3.60555015,4541.3,4540.6,0.39608]
[1759507605878,0.231,4541.1,4540.7,1.1898]
[1759507606085,3.20953015,4541.3,4540.9,0.39605]
[1759507606284,3.20953015,4541.3,4540.7,1.58587]
[1759507606285,3.44053015,4541.3,4540.7,1.58587]
[1759507606584,3.20953015,4541.3,4540.9,1.1898]
[1759507606781,3.20953015,4541.3,4541.0,0.39605]
[1759507607084,0.00173015,4541.3,4541.2,1.1898]
[1759507607484,0.022,4542.9,4541.2,1.1898]
[1759507607485,3.2298,4542.9,4541.5,0.4545]
[1759507607684,1.1306,4541.6,4541.0,0.00278093]
[1759507607889,3.2078,4541.7,4541.1,1.1898]
[1759507607890,3.4388,4541.7,4541.1,1.1898]
[1759507608184,3.2078,4541.7,4541.1,1.1898]
[1759507608388,0.00234045,4541.7,4541.4,0.39601]
[1759507608582,3.4388,4541.6,4541.0,0.00278093]
[1759507608889,1.1306,4541.1,4541.0,0.00278093]
[1759507609279,4.3384,4541.1,4541.0,0.00278093]
[1759507609480,4.5694,4541.1,4541.0,0.00278093]
[1759507609679,9.5694,4541.1,4541.0,0.00278093]
[1759507610384,2.12089,4540.3,4538.9,0.128]
[1759507610679,2.12089,4540.3,4539.5,1.1898]
[1759507610680,3.2078,4539.8,4539.5,1.1898]
[1759507610878,3.60396,4539.8,4539.2,0.3962]
[1759507611077,3.2078,4539.8,4539.0,1.6443]
[1759507611281,0.39618,4539.5,4539.0,1.64637342]
[1759507611483,3.2078,4539.8,4539.1,1.1898]
[1759507611786,3.4388,4539.8,4539.1,1.1898]
[1759507611982,3.2078,4539.8,4539.4,0.39618]
[1759507612289,3.2078,4540.3,4540.2,1.1898]
[1759507612481,3.2078,4541.1,4540.5,0.39609]
[1759507612683,0.45019829,4541.0,4540.4,1.1898]
[1759507612884,3.2078,4541.1,4540.9,1.1898]
[1759507613074,0.396,4541.6,4540.6,1.1898]
[1759507613279,0.39601,4541.5,4540.9,0.39605]
[1759507613478,0.00234045,4541.7,4541.4,0.39601]
[1759507613680,0.00234045,4541.7,4541.5,1.5858]
[1759507613886,0.00234045,4541.7,4541.6,1.1898]
[1759507614580,0.396,4541.6,4540.9,0.39605]
[1759507614788,0.39601,4541.5,4540.9,0.39605]
[1759507614983,0.39606,4540.9,4540.8,1.1898]
[1759507615281,0.39611,4540.4,4540.2,1.1898]
[1759507615487,0.39603,4541.3,4540.8,0.39606]
[1759507615676,3.2078,4541.5,4540.9,0.39605]
[1759507615677,3.4388,4541.5,4540.9,0.39605]
[1759507615878,0.39601,4541.5,4541.0,0.4545]
[1759507616085,0.00234045,4541.7,4541.3,1.1898]
[1759507616280,0.39601,4541.5,4541.2,1.1898]
[1759507616477,0.39602,4541.4,4541.1,1.1898]
[1759507616886,0.231,4541.6,4540.7,0.39607]
[1759507616887,3.2078,4541.3,4540.7,0.39607]
[1759507617084,3.2078,4541.3,4540.4,1.1898]
[1759507617387,0.39606,4540.9,4540.5,1.1898]
[1759507617588,3.2078,4541.3,4540.5,1.1898]
[1759507617890,3.60382,4541.3,4540.1,4.19811]
[1759507618092,3.2078,4541.3,4540.9,1.58585]
[1759507618390,1.1306,4541.2,4540.1,4.19812]
[1759507618584,1.1306,4541.2,4540.3,1.1898]
[1759507618787,4.3384,4541.3,4540.8,1.1898]
[1759507618985,3.2078,4541.3,4540.9,0.39605]
[1759507619184,0.00234045,4541.7,4541.2,1.1898]
[1759507619490,0.00234045,4541.7,4541.6,1.1898]
[1759507619683,0.00234045,4541.7,4541.1,3.2078]
[1759507619879,3.2078,4541.5,4540.6,1.1898]
[1759507620187,1.1306,4541.1,4540.8,1.1898]
[1759507620388,0.39608,4540.7,4540.5,0.231]
[1759507620589,0.39611,4540.4,4540.2,1.1898]
[1759507620784,4.3384,4540.4,4539.6,1.1898]
[1759507621089,4.3384,4540.4,4539.4,0.231]
[1759507621090,0.39616,4539.8,4539.4,0.231]
[1759507621391,4.3384,4540.4,4539.4,0.231]
[1759507621581,0.39615,4539.9,4539.5,1.1898]
[1759507621785,1.1306,4539.9,4539.5,1.1898]
[1759507621985,3.2078,4540.4,4539.5,1.1757]
[1759507622188,0.231,4540.3,4539.9,1.1757]
[1759507622488,3.2078,4540.4,4540.0,1.57183]
[1759507622689,0.022,4542.9,4542.0,0.9899]
[1759507622881,2.04545142,4543.5,4541.3,9.90058]
[1759507622882,0.4687,4543.5,4542.8,3.2078]
[1759507623086,0.4687,4543.5,4542.9,0.39587]
[1759507623385,0.4687,4543.5,4543.3,3.2078]
[1759507623584,0.4687,4544.0,4543.3,3.2078]
[1759507623789,0.00232662,4543.5,4543.4,1.03524]
[1759507623993,0.39579,4544.0,4543.4,3.2078]
[1759507624196,0.5027,4544.5,4543.4,3.2078]
[1759507624488,0.89845,4544.5,4543.4,3.2078]
[1759507624690,0.4687,4543.7,4542.9,0.57620644]
[1759507624898,1.1731,4542.9,4542.5,0.57620644]
[1759507625195,1.1731,4542.9,4541.6,0.57620644]
[1759507625196,0.39596,4542.0,4541.6,0.57620644]
[1759507625387,1.6418,4541.6,4541.5,0.57620644]
[1759507625590,2.0378,4541.6,4541.4,0.57620644]
[1759507625791,0.39603,4541.2,4541.1,0.57620644]
[1759507625988,1.80013,4541.2,4540.3,4.36366158]
[1759507626296,1.80013,4541.2,4538.1,9.90748]
[1759507626297,1.1731,4540.1,4539.9,1.15586158]
[1759507626591,0.4687,4540.9,4539.7,3.2078]
[1759507626592,0.39615,4539.8,4539.7,3.2078]
[1759507626794,1.1731,4539.8,4539.7,3.2078]
[1759507627096,6.1731,4539.8,4539.7,0.00185529]
[1759507627289,6.4041,4539.8,4539.7,0.00185529]
[1759507627698,1.6418,4539.2,4538.5,3.2078]
[1759507627894,1.1731,4539.1,4539.0,3.2078]
[1759507628697,0.231,4539.9,4539.0,3.21024612]
[1759507628998,1.1731,4539.9,4539.1,0.231]
[1759507629199,0.4687,4540.0,4539.6,3.2078]
[1759507629395,1.1731,4539.9,4539.6,3.2078]
[1759507629801,1.1731,4539.9,4539.6,3.60397]
[1759507629998,1.1731,4539.9,4539.6,3.2078]
[1759507630395,0.99004,4541.5,4539.6,3.2078]
[1759507630396,1.1731,4540.6,4539.7,5.231]
[1759507630701,1.1731,4540.8,4540.5,3.2078]
[1759507631094,3.2078,4541.5,4540.5,3.2078]
[1759507631397,0.00157658,4541.6,4541.0,3.2078]
[1759507631603,0.00157658,4541.6,4541.1,1.80274]
[1759507631805,0.00157658,4541.6,4541.2,1.1757]
[1759507631998,0.00157658,4541.6,4541.5,3.2078]
[1759507632896,1.17467658,4541.6,4541.5,3.2078]
[1759507633399,0.00157658,4541.6,4541.3,0.231]
[1759507633701,0.39607,4540.8,4540.7,3.2078]
[1759507633912,0.4687,4540.2,4539.7,0.76958843]
[1759507634207,1.1731,4540.1,4539.4,0.76958843]
[1759507634504,1.56931,4539.2,4539.1,3.97738843]
[1759507634705,1.1731,4539.2,4539.1,3.97738843]
[1759507634905,1.1731,4540.1,4539.1,3.97738843]
[1759507635404,0.39619,4539.5,4539.1,3.97738843]
[1759507635700,1.1731,4539.2,4539.1,3.97738843]
[1759507635902,1.1731,4539.2,4539.1,3.2078]
[1759507636403,1.56924,4540.0,4539.1,3.2078]
[1759507636600,0.39616,4539.8,4539.1,3.4388]
[1759507636800,1.1731,4540.0,4539.1,3.4388]
[1759507636999,1.1731,4539.6,4539.1,3.83501]
[1759507637205,1.1731,4539.6,4539.1,5.01071]
[1759507637404,0.4687,4540.2,4539.4,0.39619]
[1759507637608,0.4687,4540.2,4539.6,3.2078]
[1759507637904,1.1731,4540.3,4539.6,3.4388]
[1759507638206,1.1731,4540.3,4539.6,3.83497]
[1759507638207,1.56922,4540.3,4539.6,3.83497]
[1759507638602,1.1731,4540.3,4539.7,0.39616]
[1759507638801,1.1731,4540.3,4539.6,3.4388]
[1759507639008,0.39609,4540.6,4540.1,3.2078]
[1759507639208,3.2078,4540.8,4540.1,3.2078]
[1759507639501,1.1731,4540.7,4540.1,3.2078]
[1759507639694,3.2078,4540.8,4540.1,3.2078]
[1759507639895,1.56918,4540.7,4540.1,3.2078]
[1759507640205,1.6418,4540.9,4540.2,0.39612]
[1759507640403,3.2078,4541.5,4539.4,0.99048]
[1759507640404,3.2078,4541.5,4540.6,3.2078]
[1759507640609,3.2078,4541.5,4540.7,0.231]
[1759507640908,0.39603,4541.3,4540.7,0.231]
[1759507641105,3.60381,4541.5,4540.7,0.231]
[1759507641303,1.17467658,4541.6,4540.8,1.1757]
[1759507641507,1.17467658,4541.6,4541.2,3.2078]
[1759507641705,0.00157658,4541.6,4541.2,3.2078]
[1759507642208,0.00157658,4541.6,4541.4,1.1757]
[1759507642513,1.1731,4541.5,4541.2,3.2078]
[1759507642802,0.00157658,4541.6,4541.4,0.39601]
[1759507643001,1.1731,4542.2,4541.5,1.1757]
[1759507643203,4.77681,4542.7,4541.9,3.2078]
[1759507643410,4.3809,4542.7,4542.0,0.231]
[1759507643907,1.1731,4542.9,4542.4,3.2078]
[1759507644206,1.1731,4542.5,4542.4,3.21048537]
[1759507644804,1.1731,4542.5,4542.4,0.00268537]
[1759507645311,2.03782,4541.4,4541.3,3.2078]
[1759507645705,1.1731,4542.0,4541.4,0.39601]